bitfinex/quotes_SOLUSD_20250102
["timestamp","ask_amount","ask_price","bid_price","bid_amount"]
[1735821024625,7.97433416,208.3,208.23,7.97433416]
[1735821025512,9.58983416,208.31,208.24,7.97433416]
[1735821025817,33.36671816,208.31,208.24,7.97433416]
[1735821027924,7.97433416,208.29,208.18,12.0084]
[1735821028226,7.97433416,208.28,208.21,7.97433416]
[1735821028531,7.97433416,208.3,208.23,7.97433416]
[1735821028836,31.75121816,208.3,208.23,7.97433416]
[1735821029412,1.6155,208.31,208.25,7.97433416]
[1735821029841,9.58983416,208.31,208.24,7.97433416]
[1735821030708,31.75121816,208.3,208.23,7.97433416]
[1735821031237,7.97433416,208.3,208.23,7.97433416]
[1735821034525,7.97433416,208.3,208.22,7.97433416]
[1735821034723,31.75121816,208.3,208.22,7.97433416]
[1735821035148,31.75121816,208.3,208.19,0.72020937]
[1735821035347,23.776884,208.29,208.21,7.97433416]
[1735821035658,31.75121816,208.29,208.19,0.72020937]
[1735821035828,31.75121816,208.29,208.21,7.97433416]
[1735821036548,31.75121816,208.29,208.22,7.97433416]
[1735821038345,7.97433416,208.29,208.22,7.97433416]
[1735821038552,7.97433416,208.3,208.22,7.97433416]
[1735821039551,9.58983416,208.31,208.24,7.97433416]
[1735821039736,33.36671816,208.31,208.24,7.97433416]
[1735821040050,7.97433416,208.3,208.23,7.97433416]
[1735821040232,7.97433416,208.3,208.22,0.72014467]
[1735821040433,7.97433416,208.3,208.23,7.97433416]
[1735821043451,31.75121816,208.3,208.23,7.97433416]
[1735821043652,7.97433416,208.28,208.21,7.97433416]
[1735821044856,7.97433416,208.28,208.22,7.97433416]
[1735821045433,7.97433416,208.3,208.23,7.97433416]
[1735821046442,7.97433416,208.29,208.22,7.97433416]
[1735821047262,31.75121816,208.3,208.22,7.97433416]
[1735821047753,7.97433416,208.29,208.22,7.97433416]
[1735821051862,7.97433416,208.3,208.23,7.97433416]
[1735821052250,7.97433416,208.29,208.23,7.97433416]
[1735821052674,7.97433416,208.29,208.22,7.97433416]
[1735821053159,23.776884,208.28,208.22,7.97433416]
[1735821053362,31.75121816,208.28,208.19,12.7278361]
[1735821053667,31.75121816,208.28,208.21,7.97433416]
[1735821055347,7.97433416,208.28,208.21,7.97433416]
[1735821055772,7.97433416,208.28,208.19,12.7278361]
[1735821056069,7.97433416,208.23,208.17,8.69459222]
[1735821056751,9.62823416,208.24,208.18,7.97433416]
[1735821057346,7.97433416,208.23,208.17,0.72025806]
[1735821057552,7.97433416,208.23,208.17,7.97433416]
[1735821058474,7.97433416,208.22,208.16,7.97433416]
[1735821058854,7.97433416,208.2,208.14,0.72041373]
[1735821059163,7.97433416,208.2,208.12,12.0116]
[1735821059465,21.6539,208.24,208.16,7.97433416]
[1735821059660,7.97433416,208.23,208.17,7.97433416]
[1735821060569,21.6539,208.24,208.19,7.97433416]
[1735821060570,1.6539,208.24,208.19,7.97433416]
[1735821061557,1.6539,208.24,208.2,7.97433416]
[1735821061756,1.6539,208.24,208.21,7.97433416]
[1735821061965,1.6539,208.24,208.19,7.97433416]
[1735821062153,1.6539,208.24,208.18,7.97433416]
[1735821062483,1.6539,208.24,208.18,8.69467857]
[1735821062681,1.6539,208.24,208.19,7.97433416]
[1735821063666,1.6539,208.24,208.18,8.69467857]
[1735821063977,9.62823416,208.24,208.18,8.69467857]
[1735821064372,1.6539,208.24,208.18,8.69467857]
[1735821064575,1.6539,208.24,208.19,7.97433416]
[1735821064873,1.6539,208.24,208.2,7.97433416]
[1735821066191,1.6539,208.24,208.19,8.69462766]
[1735821066400,1.6539,208.24,208.17,0.72032221]
[1735821066587,1.6539,208.24,208.19,7.97433416]
[1735821066886,9.62823416,208.24,208.17,0.72032221]
[1735821067271,9.62823416,208.24,208.17,8.69465637]
[1735821067469,9.62823416,208.24,208.17,7.97433416]
[1735821067667,7.97433416,208.23,208.16,7.97433416]
[1735821067863,7.97433416,208.19,208.13,0.72040892]
[1735821068084,7.97433416,208.18,208.12,19.98763416]
[1735821068591,7.97433416,208.19,208.12,19.98763416]
[1735821069579,7.97433416,208.18,208.12,20.70817272]
[1735821069966,7.97433416,208.17,208.12,12.73383856]
[1735821070168,7.97433416,208.14,208.04,0.72053989]
[1735821070388,9.61263416,208.1,208.07,12.733838]
[1735821070588,7.97433416,208.09,208.07,12.733838]
[1735821070868,7.97433416,208.09,208.03,7.97433416]
[1735821071069,7.97433416,208.08,208.02,17.58696816]
[1735821071269,1.6383,208.1,208.04,7.97433416]
[1735821071469,1.6383,208.1,208.05,7.97433416]
[1735821071688,1.6383,208.1,208.06,7.97433416]
[1735821072192,1.6383,208.1,208.05,7.97433416]
[1735821072790,6.5016,208.12,208.08,7.97433416]
[1735821072979,1.5796,208.15,208.09,7.97433416]
[1735821073173,1.5796,208.15,208.08,0.72070263]
[1735821073378,1.5796,208.15,208.1,7.97433416]
[1735821074602,1.5796,208.15,208.09,7.97433416]
[1735821074770,1.5796,208.15,208.08,7.97433416]
[1735821074771,7.97433416,208.14,208.08,7.97433416]
[1735821075183,1.5796,208.15,208.09,7.97433416]
[1735821075775,7.97433416,208.12,208.06,0.7206667]
[1735821075975,7.97433416,208.13,208.07,7.97433416]
[1735821076417,7.97433416,208.13,208.06,0.7206667]
[1735821076587,1.5796,208.15,208.07,7.97433416]
[1735821076779,7.97433416,208.14,208.08,7.97433416]
[1735821076974,7.97433416,208.13,208.04,0.72076016]
[1735821077184,7.97433416,208.13,208.06,7.97433416]
[1735821077600,7.97433416,208.13,208.04,0.72076016]
[1735821077899,7.97433416,208.12,208.05,7.97433416]
[1735821078095,1.5796,208.15,208.05,7.97433416]
[1735821078306,1.5796,208.15,208.03,7.974335]
[1735821078307,7.97433416,208.11,208.03,7.974335]
[1735821078491,7.97433416,208.1,208.04,7.97433416]
[1735821079177,7.97433416,208.1,208.03,15.94866916]
[1735821079496,7.97433416,208.1,208.03,7.97433416]
[1735821080279,7.97433416,208.09,208.03,7.97433416]
[1735821080876,23.776884,208.14,208.01,7.97433416]
[1735821080877,7.97433416,208.08,208.01,7.97433416]
[1735821081220,7.97433416,208.07,207.98,0.72087775]
[1735821081515,7.97433416,208.07,208.01,7.97433416]
[1735821081516,1.5217,208.06,208.01,7.97433416]
[1735821081921,1.5217,208.06,208.02,7.97433416]
[1735821082132,1.5217,208.06,208.03,7.97433416]
[1735821082616,1.5217,208.06,208.01,7.97433416]
[1735821082915,1.5217,208.06,208.0,7.97433416]
[1735821084275,7.97433416,208.05,207.94,0.72107234]
[1735821084506,9.49603416,208.06,207.99,7.97433416]
[1735821084709,1.5217,208.06,208.0,7.97433416]
[1735821085010,9.49603416,208.06,207.99,7.97433416]
[1735821085210,9.23590892,208.06,207.99,7.97433416]
[1735821085412,9.23590892,208.06,208.0,7.97433416]
[1735821085709,1.26157476,208.06,208.0,7.97433416]
[1735821085944,1.26157476,208.06,208.01,7.97433416]
[1735821086416,1.26157476,208.06,207.97,12.0221]
[1735821086628,9.23590892,208.06,208.0,7.97433416]
[1735821086925,9.23590892,208.06,207.99,7.97433416]
[1735821087124,27.97433416,208.05,207.98,7.97433416]
[1735821087406,7.97433416,208.04,207.98,7.97433416]
[1735821087815,20.0,208.05,208.0,7.97433416]
[1735821088015,20.0,208.05,207.94,24.76581891]
[1735821088192,1.26157476,208.06,208.0,7.97433416]
[1735821088515,9.23590892,208.06,208.0,7.97433416]
[1735821088721,1.26157476,208.06,208.0,7.97433416]
[1735821089205,1.26157476,208.06,208.01,7.97433416]
[1735821089606,1.26157476,208.06,208.02,7.97433416]
[1735821090316,1.26157476,208.06,208.01,7.97433416]
[1735821090812,1.26157476,208.06,208.02,7.97433416]
[1735821091623,1.26157476,208.06,207.95,12.74319259]
[1735821091802,1.26157476,208.06,208.01,7.97433416]
[1735821092000,1.26157476,208.06,208.0,7.97433416]
[1735821093519,1.26157476,208.06,207.95,12.74319259]
[1735821093723,1.26157476,208.06,208.02,7.97433416]
[1735821094329,1.26157476,208.06,208.03,7.97433416]
[1735821094525,1.26157476,208.06,208.04,7.97433416]
[1735821094831,1.26157476,208.06,207.98,0.72099084]
[1735821095127,1.26157476,208.06,208.03,7.97433416]
[1735821096008,1.26157476,208.06,208.01,7.97433416]
[1735821096433,1.26157476,208.06,208.02,7.97433416]
[1735821096804,1.26157476,208.06,208.03,7.97433416]
[1735821097632,1.26157476,208.06,208.02,7.97433416]
[1735821098034,1.26157476,208.06,208.01,7.97433416]
[1735821099326,1.26157476,208.06,207.95,12.74262505]
[1735821099529,1.26157476,208.06,208.0,7.97433416]
[1735821099731,1.26157476,208.06,208.01,7.97433416]
[1735821099941,1.26157476,208.06,208.02,7.97433416]
[1735821101234,1.26157476,208.06,208.03,7.97433416]
[1735821101448,1.26157476,208.06,208.04,7.97433416]
[1735821102035,1.26157476,208.06,208.03,7.97433416]
[1735821102214,1.26157476,208.06,208.04,7.97433416]
[1735821102414,6.0254,208.08,208.04,7.97433416]
[1735821103031,6.0254,208.08,208.03,7.97433416]
[1735821103228,6.0254,208.08,208.02,7.97433416]
[1735821103538,6.0254,208.08,207.99,7.97433416]
[1735821103539,7.97433416,208.06,207.99,7.97433416]
[1735821103907,7.97433416,208.05,207.99,7.97433416]
[1735821105132,7.97433416,208.05,207.98,7.97433416]
[1735821105322,29.57553416,208.04,207.97,7.97433416]
[1735821105632,7.97433416,208.03,207.91,0.72118558]
[1735821105833,7.97433416,208.01,207.93,12.0221]
[1735821106013,7.97433416,208.01,207.94,7.97433416]
[1735821106610,7.97433416,208.01,207.95,7.97433416]
[1735821106811,7.97433416,208.02,207.96,7.97433416]
[1735821107330,13.98943416,208.03,207.96,7.97433416]
[1735821109423,6.0151,208.03,207.97,7.97433416]
[1735821111039,7.97433416,208.01,207.9,12.74644163]
[1735821111339,7.97433416,208.0,207.93,7.97433416]
[1735821112119,20.0,207.97,207.89,0.72133965]
[1735821112326,7.97433416,207.99,207.92,7.97433416]
[1735821112523,1.5566,207.98,207.92,7.97433416]
[1735821112933,1.5566,207.98,207.86,0.7213785]
[1735821113138,1.5566,207.98,207.91,7.97433416]
[1735821113139,9.53093416,207.98,207.91,7.97433416]
[1735821113357,20.0,207.96,207.92,7.97433416]
[1735821113517,1.5566,207.98,207.92,7.97433416]
[1735821113727,1.5566,207.98,207.93,7.97433416]
[1735821114131,1.5566,207.98,207.95,7.97433416]
[1735821114333,1.5566,207.98,207.97,7.97433416]
[1735821114559,7.5717,208.03,207.97,7.97433416]
[1735821114846,7.5717,208.03,207.98,7.97433416]
[1735821115923,7.5717,208.03,207.91,12.74530223]
[1735821115924,7.5717,208.03,208.0,7.97433416]
[1735821116141,1.5566,208.03,208.01,7.97433416]
[1735821116461,8.2916,208.08,208.02,7.97433416]
[1735821116648,8.2916,208.08,208.07,7.97433416]
[1735821116649,1.6591,208.08,208.07,7.97433416]
[1735821116850,7.75567639,208.13,208.07,7.97433416]
[1735821117139,1.6591,208.13,208.09,7.97433416]
[1735821118231,1.6389,208.18,208.1,12.49457627]
[1735821118537,1.6389,208.18,208.12,12.49457627]
[1735821118846,12.49457627,208.17,208.11,12.49457627]
[1735821119222,12.49457627,208.16,208.09,12.49457627]
[1735821119450,20.1009785,208.18,208.11,12.49457627]
[1735821119643,20.1009785,208.18,208.01,5.72069756]
[1735821119644,7.60640223,208.18,208.12,12.49457627]
[1735821120328,1.6389,208.18,208.12,12.49457627]
[1735821120925,14.13347627,208.18,208.11,12.49457627]
[1735821121248,14.13347627,208.18,208.03,0.72068908]
[1735821121249,1.6389,208.18,208.12,12.49457627]
[1735821121461,1.6389,208.18,208.13,12.49457627]
[1735821121837,1.6389,208.18,208.12,12.49457627]
[1735821122045,1.6389,208.18,208.04,19.095576]
[1735821122227,12.49457627,208.15,208.08,12.49457627]
[1735821122427,12.49457627,208.15,208.09,12.49457627]
[1735821122736,1.6389,208.18,208.09,12.49457627]
[1735821122737,12.49457627,208.16,208.09,12.49457627]
[1735821123147,12.49457627,208.17,208.1,12.49457627]
[1735821123345,12.49457627,208.14,208.08,12.49457627]
[1735821123533,12.49457627,208.14,208.07,12.49457627]
[1735821123727,12.49457627,208.12,208.06,12.49457627]
[1735821124137,12.49457627,208.12,208.05,12.49457627]
[1735821124449,12.49457627,208.09,208.03,12.49457627]
[1735821124848,12.49457627,208.13,208.06,12.49457627]
[1735821126242,12.49457627,208.11,208.05,12.49457627]
[1735821126449,32.49457627,208.12,208.05,12.49457627]
[1735821126751,20.54297627,208.15,208.09,12.49457627]
[1735821126934,8.0484,208.15,208.09,12.49457627]
[1735821127358,20.54297627,208.15,208.09,12.49457627]
[1735821127938,12.49457627,208.14,208.07,12.49457627]
[1735821128354,32.49457627,208.12,208.05,12.49457627]
[1735821128736,12.49457627,208.1,208.04,12.49457627]
[1735821129143,12.49457627,208.1,208.03,12.49457627]
[1735821129337,12.49457627,208.08,208.02,12.49457627]
[1735821129539,12.49457627,208.07,208.0,12.49457627]
[1735821129758,1.6369,208.05,207.99,12.49457627]
[1735821129954,14.13147627,208.05,207.98,12.49457627]
[1735821130346,1.6369,208.05,208.0,12.49457627]
[1735821130658,20.65937627,208.05,207.98,12.49457627]
[1735821131456,12.49457627,208.04,207.98,12.49457627]
[1735821131957,1.6369,208.05,208.02,12.49457627]
[1735821132454,1.6369,208.05,208.01,12.49457627]
[1735821132671,1.6369,208.05,208.0,12.49457627]
[1735821133265,1.6369,208.05,207.99,12.49457627]
[1735821133562,34.13147627,208.05,207.98,12.49457627]
[1735821134461,1.6369,208.05,208.01,12.49457627]
[1735821135339,1.6369,208.05,207.93,0.72106245]
[1735821135542,1.6369,208.05,208.0,12.49457627]
[1735821135861,1.6369,208.05,208.01,12.49457627]
[1735821136965,1.6369,208.05,208.0,12.49457627]
[1735821137558,12.49457627,208.03,207.93,0.72106245]
[1735821137861,12.49457627,208.02,207.95,12.49457627]
[1735821138247,6.20996503,208.05,207.97,12.49457627]
[1735821138455,12.49457627,208.03,207.97,12.49457627]
[1735821139044,12.49457627,208.03,207.96,12.49457627]
[1735821139964,12.49457627,208.03,207.97,12.49457627]
[1735821140363,12.49457627,208.03,207.96,12.49457627]
[1735821141366,12.49457627,208.03,207.97,12.49457627]
[1735821141564,12.49457627,208.04,207.98,12.49457627]
[1735821143765,18.7045413,208.05,207.98,12.49457627]
[1735821143979,1.6369,208.05,208.01,12.49457627]
[1735821144462,1.6369,208.05,208.02,12.49457627]
[1735821146164,1.6369,208.05,207.96,0.72099691]
[1735821146344,7.6129,208.1,208.04,12.49457627]
[1735821146663,8.0133,208.15,208.09,12.49457627]
[1735821146862,8.0133,208.15,208.11,12.49457627]
[1735821147164,20.0,208.14,208.11,12.49457627]
[1735821147356,1.6327,208.15,208.12,12.49457627]
[1735821148651,5.63577112,208.18,208.14,12.49457627]
[1735821148866,6.1005,208.2,208.14,12.49457627]
[1735821150075,18.59507627,208.2,208.14,12.49457627]
[1735821150378,11.73627112,208.2,208.15,12.49457627]
[1735821150561,5.63577112,208.19,208.14,12.49457627]
[1735821150966,18.59507627,208.2,208.14,12.49457627]
[1735821151487,1.601,208.21,208.16,12.49457627]
[1735821151864,1.601,208.21,208.17,12.49457627]
[1735821152262,1.601,208.21,208.18,12.49457627]
[1735821152458,12.49457627,208.25,208.18,12.49457627]
[1735821152658,12.49457627,208.25,208.19,12.49457627]
[1735821153378,20.70097627,208.26,208.2,12.49457627]
[1735821154391,12.49457627,208.25,208.19,12.49457627]
[1735821154887,20.70097627,208.26,208.2,12.49457627]
[1735821155177,8.2064,208.26,208.2,12.49457627]
[1735821155492,20.32167627,208.31,208.25,12.49457627]
[1735821155855,7.8271,208.31,208.26,12.49457627]
[1735821156491,14.02847627,208.34,208.27,12.49457627]
[1735821156778,14.02847627,208.34,208.21,0.72036127]
[1735821156779,1.5339,208.34,208.28,12.49457627]
[1735821157278,20.0,208.32,208.27,12.49457627]
[1735821157876,20.0,208.32,208.26,12.49457627]
[1735821158196,20.0,208.33,208.27,12.49457627]
[1735821158399,20.0,208.33,208.28,12.49457627]
[1735821158875,12.49457627,208.31,208.25,12.49457627]
[1735821159079,12.49457627,208.31,208.24,12.49457627]
[1735821159578,12.49457627,208.33,208.26,12.49457627]
[1735821160162,12.49457627,208.32,208.26,12.49457627]
[1735821160855,12.49457627,208.33,208.26,12.49457627]
[1735821161877,12.49457627,208.32,208.26,12.49457627]
[1735821162192,12.49457627,208.31,208.24,12.49457627]
[1735821163063,12.49457627,208.32,208.25,12.49457627]
[1735821163568,12.49457627,208.31,208.24,12.49457627]
[1735821163884,12.49457627,208.32,208.25,12.49457627]
[1735821164575,12.49457627,208.32,208.26,12.49457627]
[1735821164961,12.49457627,208.32,208.25,12.49457627]
[1735821166191,12.49457627,208.31,208.24,12.49457627]
[1735821166682,12.49457627,208.29,208.22,12.49457627]
[1735821166994,12.49457627,208.28,208.21,12.49457627]
[1735821167195,20.0,208.31,208.25,12.49457627]
[1735821167691,20.0,208.31,208.26,12.49457627]
[1735821168289,12.49457627,208.33,208.26,12.49457627]
[1735821168470,1.5339,208.34,208.29,12.49457627]
[1735821168669,20.0,208.33,208.29,12.49457627]
[1735821169100,20.0,208.33,208.28,12.49457627]
[1735821169304,34.02847627,208.34,208.28,12.49457627]
[1735821170398,34.02847627,208.34,208.27,12.49457627]
[1735821170602,34.02847627,208.34,208.24,0.72002327]
[1735821170781,34.02847627,208.34,208.27,12.49457627]
[1735821170961,12.49457627,208.33,208.27,12.49457627]
[1735821171167,12.49457627,208.32,208.25,12.49457627]
[1735821171466,34.02847627,208.34,208.28,12.49457627]
[1735821171881,21.5339,208.34,208.28,12.49457627]
[1735821172468,12.49457627,208.33,208.26,12.49457627]
[1735821173286,12.49457627,208.32,208.26,12.49457627]
[1735821173484,12.49457627,208.32,208.25,12.49457627]
[1735821174297,7.98513273,208.32,208.25,7.98513273]
[1735821174591,7.98513273,208.32,208.26,7.98513273]
[1735821176093,7.98513273,208.31,208.25,7.98513273]
[1735821177787,7.98513273,208.32,208.25,7.98513273]
[1735821178088,21.5339,208.34,208.26,7.98513273]
[1735821178267,7.98513273,208.32,208.25,7.98513273]
[1735821178897,7.98513273,208.33,208.26,7.98513273]
[1735821179390,29.51903273,208.34,208.29,7.98513273]
[1735821179590,1.5339,208.34,208.29,7.98513273]
[1735821180706,7.98513273,208.35,208.28,7.98513273]
[1735821180881,7.98513273,208.34,208.28,7.98513273]
[1735821181301,7.98513273,208.33,208.26,7.98513273]
[1735821181607,6.161,208.37,208.31,7.98513273]
[1735821181913,7.98513273,208.38,208.32,7.98513273]
[1735821182210,7.98513273,208.37,208.31,7.98513273]
[1735821182507,21.6262,208.39,208.32,7.98513273]
[1735821182676,9.61133273,208.39,208.33,7.98513273]
[1735821183076,7.98513273,208.38,208.31,7.98513273]
[1735821183380,7.98513273,208.37,208.31,7.98513273]
[1735821183587,7.98513273,208.34,208.28,7.98513273]
[1735821183792,13.623,208.39,208.26,7.98513273]
[1735821183793,7.98513273,208.32,208.26,7.98513273]
[1735821184594,7.98513273,208.33,208.27,7.98513273]
[1735821184802,7.98513273,208.32,208.26,7.98513273]
[1735821185279,7.98513273,208.31,208.25,7.98513273]
[1735821186580,7.98513273,208.32,208.25,7.98513273]
[1735821189087,7.98513273,208.28,208.17,12.0089]
[1735821189288,7.98513273,208.27,208.21,7.98513273]
[1735821189488,7.98513273,208.27,208.2,7.98513273]
[1735821189792,21.5605,208.3,208.18,0.72022492]
[1735821189998,1.5605,208.3,208.26,7.98513273]
[1735821190483,21.6434,208.35,208.29,7.98513273]
[1735821190683,20.0,208.34,208.3,7.98513273]
[1735821191195,1.6434,208.35,208.29,7.98513273]
[1735821192199,9.62853273,208.35,208.28,7.98513273]
[1735821192403,7.98513273,208.33,208.27,7.98513273]
[1735821193125,7.98513273,208.33,208.24,7.98513273]
[1735821193126,7.98513273,208.31,208.24,7.98513273]
[1735821194480,1.6434,208.35,208.27,31.76201673]
[1735821194798,1.6434,208.35,208.29,7.98513273]
[1735821196415,1.6434,208.35,208.31,7.98513273]
[1735821196823,7.98513273,208.38,208.32,7.98513273]
[1735821197693,7.98513273,208.38,208.31,7.98513273]
[1735821198317,12.46851377,208.38,208.31,12.46851377]
[1735821198992,12.46851377,208.37,208.31,12.46851377]
[1735821199792,12.46851377,208.35,208.29,12.46851377]
[1735821199992,12.46851377,208.34,208.28,12.46851377]
[1735821200404,12.46851377,208.36,208.29,12.46851377]
[1735821201804,12.46851377,208.35,208.29,12.46851377]
[1735821202002,12.46851377,208.35,208.28,12.46851377]
[1735821202317,12.46851377,208.34,208.28,12.46851377]
[1735821202524,4.98418682,208.38,208.27,12.46851377]
[1735821202525,12.46851377,208.33,208.27,12.46851377]
[1735821202987,12.46851377,208.33,208.25,23.776884]
[1735821202988,12.46851377,208.32,208.26,12.46851377]
[1735821203189,12.46851377,208.32,208.25,12.46851377]
[1735821203419,12.46851377,208.31,208.24,12.46851377]
[1735821203583,12.46851377,208.31,208.21,0.72008686]
[1735821203788,12.46851377,208.31,208.25,12.46851377]
[1735821204809,12.46851377,208.32,208.25,12.46851377]
[1735821205010,20.00054184,208.33,208.26,12.46851377]
[1735821205216,20.00054184,208.33,208.27,12.46851377]
[1735821205421,20.00054184,208.33,208.26,12.46851377]
[1735821206321,12.46851377,208.31,208.25,12.46851377]
[1735821206550,12.46851377,208.31,208.26,0.7200448]
[1735821206692,12.46851377,208.32,208.26,0.7200448]
[1735821206894,20.00054184,208.33,208.26,13.18855857]
[1735821207189,12.46851377,208.33,208.26,13.18855857]
[1735821207718,12.46851377,208.31,208.25,12.46851377]
[1735821208236,12.46851377,208.31,208.24,36.24539777]
[1735821208535,12.46851377,208.33,208.26,12.46851377]
[1735821208731,20.00054184,208.33,208.27,0.72002492]
[1735821209040,20.00054184,208.33,208.26,12.46851377]
[1735821209448,12.46851377,208.33,208.27,24.49692648]
[1735821210150,7.53202807,208.34,208.27,0.72004248]
[1735821210151,12.46851377,208.3,208.27,0.72004248]
[1735821210452,7.53202807,208.34,208.3,23.776884]
[1735821210747,7.53202807,208.34,208.31,12.46851377]
[1735821211042,7.53202807,208.36,208.3,36.96527392]
[1735821211412,7.53202807,208.36,208.32,23.776884]
[1735821211813,7.53202807,208.37,208.32,23.776884]
[1735821212011,20.00054184,208.37,208.31,0.71984878]
[1735821213147,12.46851377,208.36,208.3,36.24539777]
[1735821213310,7.53202807,208.37,208.31,13.18839253]
[1735821213658,20.00054184,208.37,208.31,0.71987876]
[1735821214143,20.00054184,208.37,208.3,36.24539777]
[1735821214144,12.46851377,208.36,208.3,36.24539777]
[1735821214346,12.46851377,208.36,208.3,23.776884]
[1735821214549,20.00054184,208.37,208.31,0.71987292]
[1735821215149,20.00054184,208.38,208.31,13.18838669]
[1735821215355,20.00054184,208.38,208.32,23.776884]
[1735821215551,7.53202807,208.38,208.33,0.71979972]
[1735821215757,12.46851377,208.37,208.31,12.46851377]
[1735821216045,12.46851377,208.34,208.29,0.71978405]
[1735821216443,12.46851377,208.36,208.29,13.18829782]
[1735821216651,12.46851377,208.36,208.3,23.776884]
[1735821216947,12.46851377,208.35,208.3,23.776884]
[1735821217325,12.46851377,208.35,208.29,13.18838146]
[1735821217655,12.46851377,208.34,208.29,0.71986769]
[1735821218353,12.46851377,208.31,208.25,0.71996588]
[1735821219332,12.46851377,208.32,208.26,36.24539777]
[1735821219537,12.46851377,208.33,208.28,23.776884]
[1735821220458,7.98250682,208.33,208.28,23.776884]
[1735821221575,7.98250682,208.35,208.29,8.70244101]
[1735821221724,15.51453489,208.36,208.29,8.70244101]
[1735821221923,15.51453489,208.36,208.3,23.776884]
[1735821222420,7.98250682,208.36,208.3,23.776884]
[1735821223162,7.98250682,208.36,208.3,17.01008145]
[1735821223664,7.98250682,208.35,208.29,8.70244101]
[1735821223871,7.98250682,208.33,208.26,8.7023799]
[1735821224059,7.98250682,208.32,208.26,8.7023799]
[1735821224363,7.98250682,208.33,208.26,8.7023799]
[1735821224531,7.98250682,208.33,208.27,7.98250682]
[1735821224732,7.98250682,208.33,208.28,0.71994073]
[1735821225254,7.98250682,208.31,208.26,0.71996524]
[1735821225461,7.98250682,208.31,208.24,7.98250682]
[1735821225633,7.98250682,208.31,208.25,24.49692748]
[1735821225835,7.98250682,208.3,208.25,24.49692748]
[1735821226040,7.98250682,208.26,208.25,0.72004348]
[1735821226260,7.98250682,208.26,208.21,8.69027187]
[1735821226261,12.48090241,208.26,208.21,8.69027187]
[1735821226595,12.48090241,208.29,208.22,36.25778641]
[1735821226764,1.5637,208.34,208.24,23.776884]
[1735821226966,1.5637,208.34,208.25,0.72000905]
[1735821227137,12.48090241,208.31,208.25,0.72000905]
[1735821227335,12.48090241,208.32,208.26,23.776884]
[1735821227554,12.48090241,208.32,208.27,0.71997503]
[1735821228142,12.48090241,208.3,208.27,0.71997503]
[1735821228346,12.48090241,208.29,208.24,0.72001364]
[1735821228574,12.48090241,208.28,208.24,0.72001364]
[1735821228773,12.48090241,208.27,208.24,0.72001364]
[1735821228937,12.48090241,208.27,208.22,0.7201045]
[1735821229565,12.48090241,208.29,208.22,0.7201045]
[1735821229768,12.48090241,208.29,208.22,13.20100691]
[1735821230069,12.48090241,208.28,208.22,13.20100691]
[1735821230469,12.48090241,208.29,208.23,23.776884]
[1735821230670,12.48090241,208.29,208.24,0.72007857]
[1735821231066,12.48090241,208.27,208.24,0.72007857]
[1735821231274,12.48090241,208.29,208.24,0.72007857]
[1735821231477,12.48090241,208.3,208.24,0.72007857]
[1735821231665,12.48090241,208.3,208.24,13.20098098]
[1735821232187,12.48090241,208.31,208.24,13.20098098]
[1735821232352,12.48090241,208.3,208.24,0.72007857]
[1735821232557,12.48090241,208.29,208.23,12.48090241]
[1735821234372,12.48090241,208.29,208.22,36.97785244]
[1735821235665,12.48090241,208.29,208.23,12.48090241]
[1735821235997,12.48090241,208.29,208.22,36.97785244]
[1735821237393,12.48090241,208.28,208.22,24.49695003]
[1735821237985,12.48090241,208.29,208.22,36.97785244]
[1735821239601,7.53202807,208.33,208.28,12.48090241]
[1735821239810,7.53202807,208.33,208.29,0.71993142]
[1735821239974,12.48090241,208.34,208.27,23.776884]
[1735821240183,12.48090241,208.33,208.27,24.49685106]
[1735821240381,12.48090241,208.34,208.27,36.97775347]
[1735821241114,12.48090241,208.34,208.28,12.48090241]
[1735821241269,12.48090241,208.34,208.27,36.97775347]
[1735821241469,20.01293048,208.35,208.29,23.776884]
[1735821241710,7.53202807,208.35,208.29,36.97766846]
[1735821242080,12.48090241,208.36,208.29,36.97766846]
[1735821242408,7.53202807,208.37,208.36,43.776884]
[1735821242578,7.53202807,208.37,208.36,56.97745963]
[1735821243271,7.53202807,208.37,208.34,12.48090241]
[1735821243506,12.48090241,208.38,208.33,0.71972154]
[1735821244011,12.48090241,208.38,208.32,12.48090241]
[1735821244379,12.48090241,208.38,208.32,13.20073549]
[1735821244704,12.48090241,208.39,208.32,13.20073549]
[1735821244997,12.48090241,208.37,208.32,0.71983308]
[1735821245408,12.48090241,208.39,208.33,36.25778641]
[1735821245607,12.48090241,208.4,208.34,0.71974055]
[1735821245912,7.53202807,208.42,208.39,12.48090241]
[1735821246115,7.53202807,208.42,208.41,36.25778641]
[1735821246292,7.53202807,208.42,208.41,31.74637233]
[1735821246703,7.96948833,208.49,208.42,7.96948833]
[1735821246900,7.96948833,208.49,208.43,0.71947056]
[1735821247104,7.96948833,208.5,208.43,8.68895889]
[1735821247307,7.49534751,208.51,208.47,23.776884]
[1735821247508,7.96948833,208.53,208.47,24.49618153]